Cogmind - Beta 13 X1 @@@ ROGUE MODE // 2023.10.10 @ 15:10:29 Player: DuckBoy Result: Destroyed by X4-07Y(R) with Subdweller Laser Performance ------------- Evolutions (0) 0 Regions Visited (2) 400 Robots Destroyed (32) 160 Value Destroyed (839) 839 Prototype IDs (0) 0 Alien Tech Used (0) 0 Bonus (0) 0 TOTAL SCORE: 1399 Bonus ------- None Cogmind --------- Core Integrity 0/250 Matter 251/300 Energy 100/100 System Corruption 0% Temperature Cool (6) Movement Treading (160) Location -10/Subcaves Parts ------- > --- POWER (1) -------- Subdweller Power Source > --- PROPULSION (2) --- Light Treads Spiked Treads > --- UTILITY (2) ------ Improved Heat Sink Large Storage Unit > --- WEAPON (2) ------- Subdweller Machine Gun Battle Cannon > --- INVENTORY (15) --- Ion Engine Ion Engine Ion Engine Wheel Compact Wheel Compact Wheel Subdweller Monowheel Improved Terrain Scanner Hacking Suite Beam Rifle Assault Rifle Mini Grenade Launcher Mini Grenade Launcher Subdweller Shrapnel Launcher Multitool Peak State ------------ > --- POWER ------------ Subdweller Power Source > --- PROPULSION ------- Light Treads Spiked Treads > --- UTILITY ---------- Improved Heat Sink Large Storage Unit > --- WEAPON ----------- Battle Rifle Battle Cannon > --- INVENTORY -------- Ion Engine Ion Engine Ion Engine Wheel Compact Wheel Compact Wheel Subdweller Monowheel Improved Terrain Scanner Hacking Suite Beam Rifle Assault Rifle Mini Grenade Launcher Mini Grenade Launcher Subdweller Shrapnel Launcher Multitool [Rating: 15] Favorites ----------- Power Ion Engine Engine Ion Engine Propulsion Light Treads Treads Light Treads Wheel Wheel Utility Large Storage Unit Device Improved Heat Sink Storage Large Storage Unit Weapon Beam Cannon Energy Gun Subdweller Laser Energy Cannon Beam Cannon Ballistic Gun Assault Rifle Ballistic Cannon Battle Cannon Build | -11 -10 -10 ------- Run | Jun Mat Sub Slots Evolved . | . . . Power . | . . . Propulsion . | . . . Utility . | . . . Weapon . | . . . Parts Attached 52 | 6 33 13 Power 7 | 1 5 1 Engine 7 | 1 5 1 Core . | . . . Reactor . | . . . Propulsion 22 | 2 17 3 Treads 7 | . 4 3 Leg . | . . . Wheel 15 | 2 13 . Hover . | . . . Flight . | . . . Utility 8 | 1 6 1 Device 5 | . 4 1 Storage 3 | 1 2 . Processor . | . . . Hackware . | . . . Protection . | . . . Artifact . | . . . Weapon 15 | 2 5 8 Energy Gun 3 | 1 . 2 Energy Cannon 4 | . 2 2 Ballistic Gun 7 | 1 3 3 Ballistic Cannon 1 | . . 1 Launcher . | . . . Special Weapon . | . . . Impact Weapon . | . . . Slashing Weapon . | . . . Piercing Weapon . | . . . Special Melee Weapon . | . . . Unidentified Prototypes . | . . . Parts Lost 5 | . 4 1 Power 2 | . 2 . Propulsion 1 | . 1 . Utility . | . . . Weapon 2 | . 1 1 Highest Loss Streak 2 | . 2 1 To Critical Strikes . | . . . Average Slot Usage (%) 95 | . 90 99 Engine 13 | . 13 14 Treads 13 | . . 25 Wheel 14 | . 26 2 Device 11 | . 8 14 Storage 14 | . 14 14 Energy Gun 2 | . . 3 Energy Cannon 9 | . 7 11 Ballistic Gun 13 | . 19 7 Ballistic Cannon 2 | . . 4 Naked Turns . | . . . Heaviest Build 38 | 13 31 38 Greatest Support 40 | 32 40 40 Greatest Overweight (x) 5 | . 5 1 Average Overweight (x) . | . . . Largest Inventory Capacity 15 | 8 15 15 Average Capacity 12 | 6 9 15 Most Carried 15 | 4 15 15 Average Carried 11 | 2 8 14 Final Capacity 15 | 8 15 15 Final Carried 15 | 4 14 15 Class Distribution -------------------- 59% | Mutant 32% | Scavenger-Mutant 8% | Derelict-Mutant Dominant Class ---------------- Scavenger-Mutant | -10/Materials Mutant | -10/Subcaves Resources | -11 -10 -10 ----------- Run | Jun Mat Sub Matter Collected 1143 | 209 677 257 Remotely . | . . . Salvage Created 1193 | . 837 356 Parts 84 | . 55 29 Haulers Intercepted 1 | . 1 . Recyclers Shooed 2 | . 2 . Parts Field Recycled . | . . . Retrieved Matter . | . . . Parts Self-Destructed 8 | . . 8 Prevented . | . . . Kills | -11 -10 -10 ------- Run | Jun Mat Sub Combat Hostiles Destroyed 20 | . 13 7 Guns 12 | . 12 . Cannons 8 | . 1 7 Classes Destroyed 11 | . 8 3 Worker 5 | . 5 . Builder 1 | . 1 . Tunneler 1 | . 1 . Hauler 1 | . 1 . Recycler 1 | . 1 . Operator 1 | . 1 . Watcher 2 | . 2 . Grunt 13 | . 13 . Sentry 1 | . . 1 Artisan 1 | . . 1 Subdweller 6 | . . 6 Best Kill Streak 5 | . 5 2 Combat Bots Only 3 | . 3 2 Max Kills in Single Turn 2 | . 2 1 Gunslinging . | . . . Exploded . | . . . Melee . | . . . Uniques/NPCs Destroyed . | . . . Combat | -11 -10 -10 -------- Run | Jun Mat Sub Damage Taken 1078 | . 481 597 Core 253 | . 104 149 Absorbed by Shields . | . . . Core Remaining (%) 100 | 100 . . Volleys Fired 158 | . 89 69 Largest 2 | . 2 2 Hottest 140 | . 80 140 Shots Fired 269 | . 177 92 Gun 188 | . 149 39 Cannon 81 | . 28 53 Launcher . | . . . Special . | . . . Kinetic 196 | . 149 47 Thermal 73 | . 28 45 Explosive . | . . . Electromagnetic . | . . . Robot Hit Streak 12 | . 12 10 Robot Miss Streak 4 | . 4 3 Penetration Max . | . . . Secondary Targets 2 | . 2 . Max Gunslinging Chain 1 | . 1 . Shots Hit Robots 140 | . 107 33 Core Hits 61 | . 48 13 Critical Kills . | . . . Critical Parts Destroyed . | . . . Critical Strikes 2 | . . 2 Burn 1 | . . 1 Destroy 1 | . . 1 Melee Attacks . | . . . Impact . | . . . Slashing . | . . . Piercing . | . . . Sneak Attacks . | . . . Combat Hostiles . | . . . Follow-up Attacks . | . . . Damage Inflicted 1889 | . 1318 571 Guns 1213 | . 1036 177 Cannons 676 | . 282 394 Explosions . | . . . Melee . | . . . Ramming . | . . . Kinetic 1134 | . 1036 98 Thermal 755 | . 282 473 Explosive . | . . . Electromagnetic . | . . . Impact . | . . . Slashing . | . . . Piercing . | . . . Highest Corruption . | . . . Average Corruption . | . . . Corruption Purged . | . . . Corruption Blocked . | . . . Overload Shots . | . . . Overflow Damage . | . . . Projectiles . | . . . Explosions . | . . . Melee . | . . . Knockbacks . | . . . Impact . | . . . Kinetic . | . . . Secondary . | . . . Self-Inflicted Damage . | . . . Shots . | . . . Rammed . | . . . Targets Rammed . | . . . Kicked . | . . . Crushed . | . . . Highest Temperature 160 | . 160 . Average Temperature 45 | . 45 . Received Heat Transfer 357 | . 288 69 Siege Activations . | . . . Robots Corrupted . | . . . Combat Hostiles . | . . . Parts Fried . | . . . Impact Corruptions . | . . . Robots Melted . | . . . Combat Hostiles . | . . . Parts Melted 3 | . 1 2 Heat Transferred 1568 | . 592 976 Parts Sabotaged . | . . . Parts Stolen . | . . . Parts Stripped . | . . . Power Chain Reactions . | . . . Missiles Intercepted . | . . . Alert | -11 -10 -10 ------- Run | Jun Mat Sub Peak Influence 307 | . 307 . Initial . | . . . Average 168 | . 177 . Maximum Alert Level 1 | . 1 . Low Security (%) 55 | 100 53 . Level 1 44 | . 47 . Level 2 . | . . . Level 3 . | . . . Level 4 . | . . . Level 5 . | . . . High Security . | . . . Max Security . | . . . Squads Dispatched 3 | . 3 . Investigation 2 | . 2 . Extermination . | . . . Reinforcement 1 | . 1 . Assault . | . . . Garrison . | . . . Intercept . | . . . Searches Triggered . | . . . Construction Impeded . | . . . Haulers Reinforced . | . . . Active Scanning Responses . | . . . Cargo Convoy Interrupts . | . . . Stealth | -11 -10 -10 --------- Run | Jun Mat Sub Distress Signals 2 | . 2 . Communications Jammed . | . . . Distress Signals . | . . . Times Spotted 35 | . 26 9 Peak Tracking Total 6 | . 6 2 Tactical Retreats 3 | . 3 . Traps | -11 -10 -10 ------- Run | Jun Mat Sub Traps Triggered 8 | . 8 . Indirectly . | . . . Trap Hack Attempts . | . . . Triggered . | . . . Disarmed . | . . . Reprogrammed . | . . . Reused . | . . . Traps Extracted . | . . . Installed . | . . . Triggered 2 | . . 2 Machines | -11 -10 -10 ---------- Run | Jun Mat Sub Machines Disabled . | . . . Max in Single Turn . | . . . Machines Repaired . | . . . Machines Sabotaged . | . . . Overloaded Fab Kills . | . . . Hacking | -11 -10 -10 --------- Run | Jun Mat Sub Machines Accessed 1 | . 1 . Terminals 1 | . 1 . Fabricators . | . . . Repair Stations . | . . . Recycling Units . | . . . Scanalyzers . | . . . Garrison Access . | . . . Total Hacks 3 | . 3 . Successful . | . . . Failed 3 | . 3 . Catastrophic 1 | . 1 . Database Lockouts . | . . . Manual 3 | . 3 . Terminals 3 | . 3 . Fabricators . | . . . Repair Stations . | . . . Recycling Units . | . . . Scanalyzers . | . . . Garrison Access . | . . . Terminal Hacks . | . . . Fabricator Hacks . | . . . Repair Station Hacks . | . . . Recycling Unit Hacks . | . . . Scanalyzer . | . . . Garrison Access Hacks . | . . . Unauthorized Hacks . | . . . Terminals . | . . . Fabricators . | . . . Repair Stations . | . . . Recycling Units . | . . . Scanalyzers . | . . . Garrison Access . | . . . Data Cores Recovered . | . . . Used . | . . . Hacking Detections 1 | . 1 . Full Trace Events . | . . . Feedback Events . | . . . Feedback Blocked . | . . . Robot Schematics Acquired . | . . . Robots Built . | . . . Authchips . | . . . Time . | . . . Total Robot Build Rating . | . . . Part Schematics Acquired . | . . . Parts Built . | . . . Authchips . | . . . Time . | . . . Total Part Build Rating . | . . . Parts Repaired . | . . . Time . | . . . Parts Recycled . | . . . Recycled Matter . | . . . Retrieved Matter . | . . . Retrieved Components . | . . . Parts Scanalyzed . | . . . Part Schematics Acquired . | . . . Parts Damaged . | . . . Bothacking | -11 -10 -10 ------------ Run | Jun Mat Sub Used RIF Installer . | . . . Robots Hacked . | . . . Non-combat . | . . . Combat . | . . . Robot Hacks Applied . | . . . Relay Couplers Released . | . . . Fabnet Peak Effective % . | . . . Robots Rewired . | . . . Allies Hacked . | . . . Hacks Repelled . | . . . Allies | -11 -10 -10 -------- Run | Jun Mat Sub Total Allies . | . . . Largest Group . | . . . Highest-Rated Group . | . . . Highest-Rated Ally . | . . . Total Orders . | . . . Ally Attacks . | . . . Total Damage . | . . . Kills . | . . . Allies Corrupted . | . . . Allies Melted . | . . . Intel | -11 -10 -10 ------- Run | Jun Mat Sub Robot Analysis Total . | . . . Derelict Logs Recovered . | . . . Drone Launches . | . . . Drone Recoveries . | . . . Exploration | -11 -10 -10 ------------- Run | Jun Mat Sub Turns Passed 2144 | 57 1000 1087 Spaces Moved 1310 | 45 669 596 Core 10 | 4 6 . Treads 495 | . 3 492 Legs . | . . . Wheels 805 | 41 660 104 Hover . | . . . Flight . | . . . Fastest Speed 50 | 50 80 95 Average Speed 119 | 95 95 148 Slowest Speed 300 | 100 300 160 Overloaded Moves . | . . . Propulsion Burnouts . | . . . Robots Hopped . | . . . Cave-ins Triggered . | . . . Exploration Rate (%) 39 | 4 85 28 Regions Visited 2 Branch Regions 1 Pre-discovered Areas . | . . . Known Exits Taken . | . . . Unknown Exits Taken 2 | 1 1 . Scrap Searched 3 | . . 3 Spaces Dug . | . . . Terrain Destroyed . | . . . Melee . | . . . Projectile . | . . . AOE . | . . . Terrain Rammed . | . . . Walls Destroyed . | . . . Machines Disabled . | . . . Actions | -11 -10 -10 --------- Run | Jun Mat Sub Total 1615 | 55 857 703 Wait 54 | 1 41 12 Move 1308 | 44 668 596 Hop . | . . . Pick Up 25 | 4 17 4 Fast Attach 25 | 6 15 4 Attach 3 | . 2 1 Detach . | . . . Swap 24 | . 16 8 Drop 18 | . 9 9 Fire 158 | . 89 69 Melee . | . . . Ram . | . . . Kick . | . . . Crush . | . . . Escape Stasis . | . . . Rewire . | . . . Trap . | . . . Miscellaneous . | . . . Route ------- -11/Junkyard -10/Materials (discovered 4 exits: [*Mat x2] / [*Min] / [*Sub]) -10/Subcaves History --------- Turn | Location | Event 18 | -11/Junkyard | Discovered new exit (range 16) 58 | -11/Junkyard | Entered Materials 242 | -10/Materials | Discovered new exit (range 14) 315 | -10/Materials | Build established: Mutant 722 | -10/Materials | Discovered new exit (range 16) 737 | -10/Materials | Build established: Scavenger-Mutant 748 | -10/Materials | Discovered new exit (range 10) 1048 | -10/Materials | Discovered new exit (range 10) 1058 | -10/Materials | Entered Subcaves 1088 | -10/Subcaves | Shifting Twisted Machinery released Sub. Beam Cannon 1091 | -10/Subcaves | Shifting Twisted Machinery released Sub. Laser 1370 | -10/Subcaves | Core integrity fell below 50% 1419 | -10/Subcaves | Ambushed by angry Subdweller bent on revenge 1458 | -10/Subcaves | Build established: Mutant 1745 | -10/Subcaves | Shifting Twisted Machinery released Sub. Shrapnel Launcher 1772 | -10/Subcaves | Shifting Twisted Machinery released Battle Cannon 1815 | -10/Subcaves | A swath of the cavern ceiling suddenly collapsed 1927 | -10/Subcaves | Disturbed a concealed Subdweller 2139 | -10/Subcaves | Core integrity fell below 20% 2145 | -10/Subcaves | Destroyed by X4-07Y(R) with Subdweller Laser Last Messages --------------- 01942_ Searching scrap... 01942_ Found Spk. Treads. 01942_ Found Sub. Machine Gun. 01942_ Found 37 Matter. 01943_ Acquired 26 matter. 01944_ Searching scrap... 01944_ Found Battle Rifle. 01955_ Acquired 5 matter. 01959_ Acquired 1 matter. 01963_ Dropped Beam Cannon. 01964_ Acquired Battle Rifle. 01970_ Dropped Lgt. Treads. 01973_ Dropped Battle Rifle. 01974_ Acquired Sub. Machine Gun. 01978_ Acquired 2 matter. 02041_ Acquired 37 matter. 02084_ Acquired 17 matter. 02139_ Sub. Power Source shoots sparks and powers down. 02142_ X4-07Y(R): "WEHOME!" 02142_ E7-4B3(R) suffers critical hit (Destroy). Map ----- +----------------------------------------------------+ | ?????????????????????????????????????????????????? | | ?????????????????????????????????????????????????? | | ?????????????????????????????????????????????????? | | ?????????????????????????????????????????????????? | | ????????????????????????????? ???????????????????? | | ?????????????????????????????????????????????????? | | ????????????????????????????????????????#????????? | | ??????????????????????????????#???????? ?????????? | | ????????????????????????????????# #?? ??????????? | | ???????????????????????????????#" ## #??????????? | | ???????????????????????#?????##" ???????????? | | ???????????????????????# ????#" ????????????? | | ???????????????????????# ???? ???????? ????? | | ???????????????????????# ???""""" ?????????????? | | ???????????????????????##" "###""" ???????? ?????? | | ?????????????????#????##""" # ???????????????? | | ??????????????????????# #??#####????????? | | ?????????????????????????? #?## #?????????? | | ?????????????????????????????# ### #?????????? | | ?????????????????????????????##R #??????????? | | ????????????????????????###### R #??????????? | | ?????????????????????#??# ## ##### #??????????? | | ???????????#????????????# #???## #??????#?#?? | | ????????????????????????# #????# ###????????? | | ????????????????????????# # ##???# #?#?#????? | | ?????????????????#??????#@;## #???# #????????? | | ??????????????????????### # ##### #????????? | | ?????????????????????## ### ###????????? | | ?????????????????????# ######## #?????????? | | ?????????????????????# ##????# #?????????? | | ?????????????????????## " #????#" ###???????? | | ??????????????????????## "######?##"" ##????#?? | | ?????????????????????### ###### "#"# #??????? | | ????????????????????## ## # ## " " #?#####? | | ???????#######??????# " """ ### ## | | ???##### ##??##### " """"## # ## | | ???# ## #??# # # ##" # """?#### #?# | | ???# #??# ####### " ????# #### | | ?### #?## ""#???#"""#??#?#[ ### | | ## # #?# #""# #??## ##????# ## | | #####?# ######?## ##????# | | #?????## #?????## " ###### | | # # ## #?????# ##????## """ ### #### ## ## | | ######?# ##????# #????## " ## ########### | | #??##### #?#### ##??## ##????### | | ##### ### # #### #???## | | ## #### ##??# | | # ##?## ##?# | | ## ## # ### ##### ### | | ###### ##### #######?# [& | +----------------------------------------------------+ Best States ------------- Heat Dissipation 39 Energy Generation 15 Energy Capacity 250 Matter Stores 300 Matter Capacity 300 Sight Range 16 Terrain Scan Range 16 Terrain Scan Density 10 Evasion (%) 44 Recoil Reduction 2 Item Schematics ----------------- None Robot Schematics ------------------ None Fabricated ------------ Nothing Alien Tech Used ----------------- None Achievements -------------- None Challenges ------------ None Game ------ Seed ThrusterWarpAutogun Manual? 0 Play Time 00:19:15 Cumulative 409.3 hours Start 2023.10.10 @ 14:46:35 End 2023.10.10 @ 15:10:29 Sessions 1 Manual Loads 0 Difficulty Rogue Special Mode None Game No. 253 Rogue 250 Adventurer 3 Explorer 0 Win Type - Total 7 Types 6/0/1/0/0/0/0/0/0 Lore% 69 Gallery% 77 Achievement% 66 Wizard Run 0 Options --------- ASCII 0 Keyboard 0 Movement Numpad Keybinds 0 Fullscreen 1 Font 18/SmallcapsGlow Map View 76x50 Tactical HUD 1 Map Filters NONE Filters NONE Steam 1 RUN: d1bb0d4d-5a1e-4174-86ca-e2830f4b280c